fUST/lending_fUST_20240322
["ID","MTS","AMOUNT","RATE_DAILY","PERIOD"]
[320044404,1711111858525,-357.76326013,0.00029589,2]
[320044405,1711111858534,-500.0,0.00029589,2]
[320044406,1711111858544,-500.0,0.00029589,2]
[320044407,1711111858552,-500.0,0.00029589,2]
[320044408,1711111858562,-500.0,0.00029589,2]
[320044409,1711111858571,-500.0,0.00029589,2]
[320044410,1711111858579,-500.0,0.00029589,2]
[320044411,1711111858589,-504.66718634,0.00029589,2]
[320044412,1711111858598,-275.72680892,0.00029589,2]
[320044413,1711111858608,-500.0,0.00029589,2]
[320044414,1711111858617,-326.48455357,0.00029589,2]
[320044415,1711111858626,-500.0,0.00029589,2]
[320044416,1711111858634,-500.0,0.00029589,2]
[320044417,1711111858643,-500.0,0.00029589,2]
[320044418,1711111858652,-500.0,0.00029589,2]
[320044419,1711111858661,-500.0,0.00029589,2]
[320044420,1711111858670,-393.77638511,0.00029589,2]
[320044421,1711111858679,-745.25,0.00029589,2]
[320044422,1711111858688,-500.0,0.00029589,2]
[320044423,1711111858697,-1050.15,0.00029589,2]
[320044424,1711111858706,-448.75120669,0.00029589,2]
[320044425,1711111858716,-500.0,0.00029589,30]
[320044426,1711111858725,-822.63,0.00029589,2]
[320044427,1711111858736,-521.77,0.00029589,2]
[320044428,1711111858745,-500.0,0.00029589,2]
[320044429,1711111858754,-500.0,0.00029589,2]
[320044430,1711111858763,-500.0,0.00029589,2]
[320044431,1711111858773,-500.0,0.00029589,2]
[320044432,1711111858782,-500.0,0.00029589,2]
[320044433,1711111858791,-500.0,0.00029589,2]
[320044434,1711111858800,-500.0,0.00029589,2]
[320044435,1711111858810,-151.0,0.00029589,2]
[320044436,1711111858819,-500.0,0.00029589,2]
[320044437,1711111858828,-500.0,0.00029589,2]
[320044438,1711111858837,-822.04,0.00029589,2]
[320044439,1711111858846,-765.25,0.00029589,2]
[320044440,1711111858856,-500.0,0.00029589,2]
[320044441,1711111858865,-522.7,0.00029589,2]
[320044442,1711111858875,-500.0,0.00029589,2]
[320044443,1711111858885,-500.0,0.00029589,2]
[320044444,1711111859015,-173.58931251,0.00029589,2]
[320044445,1711111859025,-500.0,0.00029589,2]
[320044446,1711111859034,-500.0,0.00029589,2]
[320044447,1711111859043,-2819.12,0.00029589,2]
[320044448,1711111859053,-474.420477,0.00029589,2]
[320044449,1711111859062,-551.95,0.00029589,2]
[320044450,1711111859072,-1059.31,0.00029589,2]
[320044451,1711111859081,-1138.93,0.00029589,2]
[320044452,1711111859091,-500.0,0.00029589,2]
[320044453,1711111859101,-500.0,0.00029589,2]
[320044454,1711111859111,-500.0,0.00029589,2]
[320044455,1711111859121,-500.0,0.00029589,2]
[320044456,1711111859131,-1081.36,0.00029589,2]
[320044457,1711111859140,-500.0,0.00029589,2]
[320044458,1711111859150,-500.0,0.00029589,2]
[320044459,1711111859159,-1909.77,0.00029589,2]
[320044460,1711111859169,-500.0,0.00029589,2]
[320044461,1711111859178,-500.0,0.00029589,2]
[320044462,1711111859188,-3328.14,0.00029589,2]
[320044463,1711111859198,-500.0,0.00029589,2]
[320044464,1711111859208,-500.0,0.00029589,2]
[320044465,1711111859217,-500.0,0.00029589,2]
[320044466,1711111859227,-1933.42,0.00029589,2]
[320044467,1711111859238,-697.43,0.00029589,2]
[320044468,1711111859247,-2814.01,0.00029589,2]
[320044469,1711111859257,-609.02,0.00029589,2]
[320044470,1711111859267,-701.09,0.00029589,2]
[320044471,1711111859276,-500.0,0.00029589,2]
[320044472,1711111859287,-500.0,0.00029589,2]
[320044473,1711111859297,-2894.22,0.00029589,2]
[320044474,1711111859306,-500.0,0.00029589,2]
[320044475,1711111859316,-871.84,0.00029589,2]
[320044476,1711111859325,-500.0,0.00029589,2]
[320044477,1711111859334,-500.0,0.00029589,2]
[320044478,1711111859343,-500.0,0.00029589,2]
[320044479,1711111859354,-500.0,0.00029589,2]
[320044480,1711111859363,-500.0,0.00029589,2]
[320044481,1711111859373,-1479.79,0.00029589,2]
[320044482,1711111859382,-500.0,0.00029589,2]
[320044483,1711111859391,-940.37,0.00029589,2]
[320044484,1711111859401,-4303.45,0.00029589,2]
[320044485,1711111859410,-500.0,0.00029589,2]
[320044486,1711111859420,-500.0,0.00029589,2]
[320044487,1711111859430,-500.0,0.00029589,2]
[320044488,1711111859439,-641.92286273,0.00029589,2]
[320044489,1711111859449,-344.87922627,0.00029589,2]
[320044490,1711111859458,-632.84,0.00029589,2]
[320044491,1711111859467,-500.0,0.00029589,2]
[320044492,1711111859477,-504.94,0.00029589,2]
[320044493,1711111859488,-500.0,0.00029589,2]
[320044494,1711111859498,-728.64,0.00029589,2]
[320044495,1711111859507,-500.0,0.00029589,2]
[320044496,1711111859518,-500.0,0.00029589,2]
[320044497,1711111859527,-519.63,0.00029589,2]
[320044498,1711111859536,-164.76537277,0.00029589,2]
[320044499,1711111859546,-500.0,0.00029589,2]
[320044500,1711111859555,-586.56,0.00029589,2]
[320044501,1711111859564,-290.70388053,0.00029589,2]
[320044502,1711111859573,-500.0,0.00029589,2]
[320044503,1711111859583,-500.0,0.00029589,2]
[320044504,1711111859594,-500.0,0.00029589,2]
[320044505,1711111859603,-500.0,0.00029589,2]
[320044506,1711111859612,-882.68,0.00029589,2]
[320044507,1711111859622,-500.0,0.00029589,2]
[320044508,1711111859631,-500.0,0.00029589,2]
[320044509,1711111859640,-500.0,0.00029589,2]
[320044510,1711111859650,-500.0,0.00029589,2]
[320044511,1711111859659,-1163.15,0.00029589,2]
[320044512,1711111859669,-516.59,0.00029589,2]
[320044513,1711111859678,-500.0,0.00029589,2]
[320044514,1711111859688,-627.89,0.00029589,2]
[320044515,1711111859698,-506.94238325,0.00029589,2]
[320044516,1711111859708,-500.0,0.00029589,2]
[320044517,1711111859717,-500.0,0.00029589,2]
[320044518,1711111859727,-500.0,0.00029589,2]
[320044519,1711111859737,-500.0,0.00029589,2]
[320044520,1711111859747,-500.0,0.00029589,2]
[320044521,1711111859756,-500.0,0.00029589,2]
[320044522,1711111859765,-500.0,0.00029589,2]
[320044523,1711111859775,-593.01,0.00029589,2]
[320044524,1711111859784,-500.0,0.00029589,2]
[320044525,1711111859795,-500.0,0.00029589,2]
[320044526,1711111859804,-500.0,0.00029589,2]
[320044527,1711111859814,-500.0,0.00029589,2]
[320044528,1711111859823,-543.78,0.00029589,2]
[320044529,1711111859833,-500.0,0.00029589,2]
[320044530,1711111859842,-500.0,0.00029589,2]
[320044531,1711111859852,-500.0,0.00029589,2]
[320044532,1711111859861,-593.17,0.00029589,2]
[320044533,1711111859871,-946.09,0.00029589,2]
[320044534,1711111859881,-500.0,0.00029589,2]
[320044535,1711111859891,-2447.47,0.00029589,2]
[320044536,1711111859901,-645.50266483,0.00029589,2]
[320044537,1711111859911,-500.0,0.00029589,2]
[320044538,1711111859921,-500.0,0.00029589,2]
[320044539,1711111859931,-500.0,0.00029589,2]
[320044540,1711111859940,-560.61,0.00029589,2]
[320044541,1711111859949,-2700.82,0.00029589,2]
[320044542,1711111859959,-500.0,0.00029589,2]
[320044543,1711111859968,-2015.68,0.00029589,2]
[320044544,1711111859978,-2908.47,0.00029589,2]
[320044545,1711111859990,-12394.08,0.00029589,2]
[320044546,1711111860000,-500.0,0.00029589,2]
[320044547,1711111860010,-500.0,0.00029589,2]
[320044548,1711111860020,-2967.04,0.00029589,2]
[320044549,1711111860030,-3908.24,0.00029589,2]
[320044550,1711111860040,-500.0,0.00029589,2]
[320044551,1711111860050,-500.0,0.00029589,2]
[320044552,1711111860061,-265.78548121,0.00029589,2]
[320044553,1711111860070,-500.0,0.00029589,2]
[320044554,1711111860080,-500.0,0.00029589,2]
[320044555,1711111860090,-500.0,0.00029589,2]
[320044556,1711111860100,-500.0,0.00029589,2]
[320044557,1711111860110,-7010.86,0.00029589,2]
[320044558,1711111860120,-3562.59,0.00029589,2]
[320044559,1711111860129,-5003.73,0.00029589,2]
[320044560,1711111860139,-798.72,0.00029589,2]
[320044561,1711111860148,-1138.64,0.00029589,2]
[320044562,1711111860158,-620.82,0.00029589,2]
[320044563,1711111860167,-500.0,0.00029589,2]
[320044564,1711111860177,-500.0,0.00029589,2]
[320044565,1711111860186,-674.43,0.00029589,2]
[320044566,1711111860195,-500.0,0.00029589,2]
[320044567,1711111860205,-28754.89,0.00029589,2]
[320044568,1711111860213,-3444.81,0.00029589,2]
[320044569,1711111860222,-749.25,0.00029589,2]
[320044570,1711111860232,-500.0,0.00029589,2]
[320044571,1711111860244,-2023.32,0.00029589,2]
[320044572,1711111860254,-500.0,0.00029589,2]
[320044573,1711111860263,-500.0,0.00029589,2]
[320044574,1711111860272,-1405.19,0.00029589,2]
[320044575,1711111860282,-763.48,0.00029589,2]
[320044576,1711111860291,-757.09,0.00029589,2]
[320044577,1711111860301,-7621.78,0.00029589,2]
[320044578,1711111860310,-500.0,0.00029589,2]
[320044579,1711111860320,-500.0,0.00029589,2]
[320044580,1711111860329,-500.0,0.00029589,2]
[320044581,1711111860338,-1000.0,0.00029589,2]
[320044582,1711111860348,-500.0,0.00029589,2]
[320044583,1711111860357,-2763.71,0.00029589,2]
[320044584,1711111860367,-500.0,0.00029589,2]
[320044585,1711111860376,-500.0,0.00029589,2]
[320044586,1711111860386,-500.0,0.00029589,2]
[320044587,1711111860395,-500.0,0.00029589,2]
[320044588,1711111860405,-535.08,0.00029589,2]
[320044589,1711111860414,-500.0,0.00029589,2]
[320044590,1711111860423,-763.4,0.00029589,2]
[320044591,1711111860432,-500.0,0.00029589,2]
[320044592,1711111860441,-500.0,0.00029589,2]
[320044593,1711111860450,-500.0,0.00029589,2]
[320044594,1711111860460,-500.0,0.00029589,2]
[320044595,1711111860469,-632.84,0.00029589,2]
[320044596,1711111860479,-500.0,0.00029589,2]
[320044597,1711111860490,-182.68593209,0.00029589,2]
[320044598,1711111860500,-3951.14,0.00029589,2]
[320044599,1711111860510,-1143.78,0.00029589,2]
[320044600,1711111860522,-500.0,0.00029589,2]
[320044601,1711111860532,-500.0,0.00029589,2]
[320044602,1711111860542,-500.0,0.00029589,2]
[320044603,1711111860552,-500.0,0.00029589,2]
[320044604,1711111860561,-500.0,0.00029589,2]
[320044605,1711111860571,-500.0,0.00029589,2]
[320044606,1711111860580,-500.0,0.00029589,2]
[320044607,1711111860590,-500.0,0.00029589,2]
[320044608,1711111860600,-500.0,0.00029589,2]
[320044609,1711111860610,-1472.91,0.00029589,2]
[320044610,1711111860621,-500.0,0.00029589,2]
[320044611,1711111860630,-500.78432997,0.00029589,2]
[320044612,1711111860639,-500.0,0.00029589,2]
[320044613,1711111860649,-500.0,0.00029589,2]
[320044614,1711111860658,-39504.62,0.00029589,2]
[320044615,1711111860667,-527.58,0.00029589,2]
[320044616,1711111860677,-501.1,0.00029589,2]
[320044617,1711111860687,-2677.19,0.00029589,2]
[320044618,1711111860696,-3007.49,0.00029589,2]
[320044619,1711111860706,-1327.74,0.00029589,2]
[320044620,1711111860715,-7203.91,0.00029589,2]
[320044621,1711111860725,-3691.34,0.00029589,2]
[320044622,1711111860737,-500.0,0.00029589,2]
[320044623,1711111860745,-37676.17,0.00029589,2]
[320044624,1711111860754,-569.34,0.00029589,2]
[320044625,1711111860764,-746.78,0.00029589,2]
[320044626,1711111860773,-500.0,0.00029589,2]
[320044627,1711111860782,-500.0,0.00029589,2]
[320044628,1711111860791,-2250.74,0.00029589,2]
[320044629,1711111860802,-500.0,0.00029589,2]
[320044630,1711111860811,-526.24,0.00029589,2]
[320044631,1711111860821,-500.0,0.00029589,2]
[320044632,1711111860830,-3013.87,0.00029589,2]
[320044633,1711111860839,-8462.19,0.00029589,2]
[320044634,1711111860849,-405.6693579,0.00029589,2]
[320044635,1711111860858,-500.0,0.00029589,2]
[320044636,1711111860868,-500.0,0.00029589,2]
[320044637,1711111860876,-500.0,0.00029589,2]
[320044638,1711111860886,-887.09,0.00029589,2]
[320044639,1711111860896,-500.0,0.00029589,2]
[320044640,1711111860905,-269.51256683,0.00029589,2]
[320044641,1711111860915,-943.95,0.00029589,2]
[320044642,1711111860925,-153.0,0.00029589,2]
[320044643,1711111860934,-306.0,0.00029589,2]
[320044644,1711111860943,-306.0,0.00029589,2]
[320044645,1711111860953,-153.0,0.00029589,2]
[320044646,1711111860962,-153.0,0.00029589,2]
[320044647,1711111860971,-153.0,0.00029589,2]
[320044648,1711111860980,-153.0,0.00029589,2]
[320044649,1711111860992,-306.0,0.00029589,2]
[320044650,1711111861002,-153.0,0.00029589,2]
[320044651,1711111861012,-153.0,0.00029589,2]
[320044652,1711111861021,-153.0,0.00029589,2]
[320044653,1711111861031,-153.0,0.00029589,2]
[320044654,1711111861041,-309.1021299,0.00029589,2]
[320044655,1711111861050,-2001.0,0.000296,2]
[320044656,1711111861059,-2001.0,0.000296,2]
[320044657,1711111861069,-527.58,0.00029643,2]
[320044658,1711111861078,-1208.18122718,0.00029672,30]
[320044659,1711111861087,-527.58,0.00029698,2]
[320044660,1711111861097,-2000.0,0.00029699,2]
[320044661,1711111861106,-527.58,0.00029753,2]
[320044662,1711111861115,-153.0,0.00029753,2]
[320044663,1711111861125,-153.0,0.00029753,2]
[320044664,1711111861135,-306.0,0.00029753,2]
[320044665,1711111861144,-153.0,0.00029753,2]
[320044666,1711111861154,-153.0,0.00029753,2]
[320044667,1711111861163,-153.0,0.00029753,2]
[320044668,1711111861172,-153.0,0.00029753,2]
[320044669,1711111861181,-2000.0,0.000298,2]
[320044670,1711111861191,-2000.0,0.000298,2]
[320044671,1711111861200,-2000.0,0.000298,2]
[320044672,1711111861209,-2000.0,0.000298,2]
[320044673,1711111861219,-2000.0,0.000298,2]
[320044674,1711111861228,-2000.0,0.000298,2]
[320044675,1711111861239,-2000.0,0.000298,2]
[320044676,1711111861248,-2000.0,0.000298,2]
[320044677,1711111861257,-2000.0,0.000298,2]
[320044678,1711111861266,-2000.0,0.000298,2]
[320044679,1711111861275,-2633.625257,0.000298,2]
[320044680,1711111861285,-201.2320405,0.00029804,2]
[320044681,1711111861294,-527.58,0.00029808,2]
[320044682,1711111861304,-153.0,0.00029843,2]
[320044683,1711111861313,-527.58,0.00029863,2]
[320044684,1711111861323,-153.0,0.00029863,2]
[320044685,1711111861332,-153.0,0.00029863,2]
[320044686,1711111861342,-153.0,0.00029863,2]
[320044687,1711111861351,-153.0,0.00029863,2]
[320044688,1711111861360,-236.65480629,0.000299,7]
[320044689,1711111861370,-527.58,0.00029917,2]
[320044690,1711111861379,-166.666666,0.00029962,2]
[320044691,1711111861389,-150.5,0.0002997,35]
[320044692,1711111861398,-150.5,0.0002997,35]
[320044693,1711111861407,-527.58,0.00029972,2]
[320044694,1711111861417,-150.5,0.0002998,35]
[320044695,1711111861426,-150.5,0.0002998,35]
[320044696,1711111861435,-2489.29429208,0.00029988,30]
[320044697,1711111861444,-150.5,0.0002999,35]
[320044698,1711111861454,-150.5,0.0002999,35]
[320044699,1711111861464,-25622.67787506,0.0003,7]
[320044700,1711111861473,-99663.46497479,0.0003,7]
[320044701,1711111861496,-186352.4071247,0.0003,7]
[320044702,1711111861509,-16388.26418907,0.0003,7]
[320044703,1711111861519,-23326.16014289,0.0003,3]
[320044704,1711111861528,-1000.0,0.0003,2]
[320044705,1711111861538,-171.47005384,0.0003,4]
[320044706,1711111861548,-5128.36066154,0.0003,2]
[320044707,1711111861558,-412.34689881,0.0003,3]
[320044708,1711111861567,-500.0,0.0003,5]
[320044709,1711111861578,-1070.04200839,0.0003,31]
[320044710,1711111861587,-700.40598325,0.0003,4]
[320044711,1711111861596,-2682.63154987,0.0003,90]
[320044712,1711111861605,-800.0,0.0003,2]
[320044713,1711111861615,-800.0,0.0003,2]
[320044714,1711111861624,-199.0,0.0003,2]
[320044715,1711111861633,-527.76401956,0.00030027,2]
[320044716,1711111861642,-153.0,0.00030027,2]
[320044717,1711111861651,-153.0,0.00030027,2]
[320044718,1711111861661,-484.0,0.000301,2]
[320044719,1711111861670,-2000.0,0.000301,2]
[320044720,1711111861680,-500.0,0.00030136,2]
[320044721,1711111861690,-500.0,0.00030136,2]
[320044722,1711111861801,-500.0,0.00030136,2]
[320044723,1711111861812,-500.0,0.00030136,2]
[320044724,1711111861821,-1018.12,0.00030136,2]
[320044725,1711111861830,-540.48,0.00030136,2]
[320044726,1711111861839,-767.28,0.00030136,2]
[320044727,1711111861848,-500.0,0.00030136,2]
[320044728,1711111861857,-500.0,0.00030136,2]
[320044729,1711111861867,-500.0,0.00030136,2]
[320044730,1711111861876,-500.0,0.00030136,2]
[320044731,1711111861886,-500.0,0.00030136,2]
[320044732,1711111861895,-500.0,0.00030136,2]
[320044733,1711111861904,-500.0,0.00030136,2]
[320044734,1711111861913,-500.0,0.00030136,2]
[320044735,1711111861923,-500.0,0.00030136,2]
[320044736,1711111861932,-500.0,0.00030136,2]
[320044737,1711111861941,-500.0,0.00030136,2]
[320044738,1711111861950,-745.25,0.00030136,2]
[320044739,1711111861958,-261.36262508,0.00030136,2]
[320044740,1711111861967,-1050.15,0.00030136,2]
[320044741,1711111861976,-500.0,0.00030136,30]
[320044742,1711111861985,-822.63,0.00030136,2]
[320044743,1711111861994,-521.77,0.00030136,2]
[320044744,1711111862003,-500.0,0.00030136,2]
[320044745,1711111862012,-500.0,0.00030136,2]
[320044746,1711111862021,-500.0,0.00030136,2]
[320044747,1711111862031,-500.0,0.00030136,2]
[320044748,1711111862041,-500.0,0.00030136,2]
[320044749,1711111862052,-500.0,0.00030136,2]
[320044750,1711111862062,-500.0,0.00030136,2]
[320044751,1711111862072,-151.0,0.00030136,2]
[320044752,1711111862081,-500.0,0.00030136,2]
[320044753,1711111862091,-500.0,0.00030136,2]
[320044754,1711111862101,-822.04,0.00030136,2]
[320044755,1711111862110,-765.25,0.00030136,2]
[320044756,1711111862119,-500.0,0.00030136,2]
[320044757,1711111862129,-522.7,0.00030136,2]
[320044758,1711111862138,-500.0,0.00030136,2]
[320044759,1711111862148,-500.0,0.00030136,2]
[320044760,1711111862157,-500.0,0.00030136,2]
[320044761,1711111862166,-500.0,0.00030136,2]
[320044762,1711111862175,-2819.12,0.00030136,2]
[320044763,1711111862185,-551.95,0.00030136,2]
[320044764,1711111862195,-1059.31,0.00030136,2]
[320044765,1711111862204,-1138.93,0.00030136,2]
[320044766,1711111862215,-500.0,0.00030136,2]
[320044767,1711111862225,-500.0,0.00030136,2]
[320044768,1711111862235,-500.0,0.00030136,2]
[320044769,1711111862246,-500.0,0.00030136,2]
[320044770,1711111862257,-1081.36,0.00030136,2]
[320044771,1711111862266,-500.0,0.00030136,2]
[320044772,1711111862276,-500.0,0.00030136,2]
[320044773,1711111862285,-1909.77,0.00030136,2]
[320044774,1711111862295,-500.0,0.00030136,2]
[320044775,1711111862304,-627.12549703,0.00030136,2]
[320044776,1711111862315,-3328.14,0.00030136,2]
[320044777,1711111862326,-500.0,0.00030136,2]
[320044778,1711111862336,-500.0,0.00030136,2]
[320044779,1711111862346,-500.0,0.00030136,2]
[320044780,1711111862356,-1933.42,0.00030136,2]
[320044781,1711111862366,-697.43,0.00030136,2]
[320044782,1711111862375,-2814.01,0.00030136,2]
[320044783,1711111862384,-609.02,0.00030136,2]
[320044784,1711111862394,-701.09,0.00030136,2]
[320044785,1711111862403,-500.0,0.00030136,2]
[320044786,1711111862413,-530.99909235,0.00030136,2]
[320044787,1711111862423,-2894.22,0.00030136,2]
[320044788,1711111862433,-500.0,0.00030136,2]
[320044789,1711111862443,-871.84,0.00030136,2]
[320044790,1711111862453,-500.0,0.00030136,2]
[320044791,1711111862463,-155.47423784,0.00030136,2]
[320044792,1711111862472,-500.0,0.00030136,2]
[320044793,1711111862482,-500.0,0.00030136,2]
[320044794,1711111862495,-500.0,0.00030136,2]
[320044795,1711111862506,-1479.79,0.00030136,2]
[320044796,1711111862520,-500.0,0.00030136,2]
[320044797,1711111862530,-940.37,0.00030136,2]
[320044798,1711111862539,-4303.45,0.00030136,2]
[320044799,1711111862550,-500.0,0.00030136,2]
[320044800,1711111862562,-500.0,0.00030136,2]
[320044801,1711111862573,-500.0,0.00030136,2]
[320044802,1711111862583,-632.84,0.00030136,2]
[320044803,1711111862595,-500.0,0.00030136,2]
[320044804,1711111862606,-504.94,0.00030136,2]
[320044805,1711111862616,-500.0,0.00030136,2]
[320044806,1711111862626,-728.64,0.00030136,2]
[320044807,1711111862636,-500.0,0.00030136,2]
[320044808,1711111862647,-500.0,0.00030136,2]
[320044809,1711111862656,-519.63,0.00030136,2]
[320044810,1711111862668,-500.0,0.00030136,2]
[320044811,1711111862683,-586.56,0.00030136,2]
[320044812,1711111862694,-500.0,0.00030136,2]
[320044813,1711111862704,-500.0,0.00030136,2]
[320044814,1711111862713,-500.0,0.00030136,2]
[320044815,1711111862724,-500.0,0.00030136,2]
[320044816,1711111862734,-882.68,0.00030136,2]
[320044817,1711111862748,-500.0,0.00030136,2]
[320044818,1711111862757,-500.0,0.00030136,2]
[320044819,1711111862767,-500.0,0.00030136,2]
[320044820,1711111862777,-500.0,0.00030136,2]
[320044821,1711111862787,-1163.15,0.00030136,2]
[320044822,1711111862798,-516.59,0.00030136,2]
[320044823,1711111862808,-500.0,0.00030136,2]
[320044824,1711111862818,-627.89,0.00030136,2]
[320044825,1711111862828,-500.0,0.00030136,2]
[320044826,1711111862840,-500.0,0.00030136,2]
[320044827,1711111862850,-501.85256439,0.00030136,2]
[320044828,1711111862860,-500.0,0.00030136,2]
[320044829,1711111862870,-500.0,0.00030136,2]
[320044830,1711111862880,-500.0,0.00030136,2]
[320044831,1711111862890,-500.0,0.00030136,2]
[320044832,1711111862900,-593.01,0.00030136,2]
[320044833,1711111862909,-500.0,0.00030136,2]
[320044834,1711111862919,-500.0,0.00030136,2]
[320044835,1711111862929,-500.0,0.00030136,2]
[320044836,1711111862940,-500.0,0.00030136,2]
[320044837,1711111862950,-543.78,0.00030136,2]
[320044838,1711111862960,-500.0,0.00030136,2]
[320044839,1711111862970,-500.0,0.00030136,2]
[320044840,1711111862980,-500.0,0.00030136,2]
[320044841,1711111862994,-593.17,0.00030136,2]
[320044842,1711111863005,-946.09,0.00030136,2]
[320044843,1711111863014,-500.0,0.00030136,2]
[320044844,1711111863024,-2447.47,0.00030136,2]
[320044845,1711111863033,-500.0,0.00030136,2]
[320044846,1711111863042,-500.0,0.00030136,2]
[320044847,1711111863052,-500.0,0.00030136,2]
[320044848,1711111863061,-560.61,0.00030136,2]
[320044849,1711111863070,-2700.82,0.00030136,2]
[320044850,1711111863079,-500.0,0.00030136,2]
[320044851,1711111863088,-2015.68,0.00030136,2]
[320044852,1711111863097,-2908.47,0.00030136,2]
[320044853,1711111863107,-12394.08,0.00030136,2]
[320044854,1711111863116,-500.0,0.00030136,2]
[320044855,1711111863126,-500.0,0.00030136,2]
[320044856,1711111863135,-2967.04,0.00030136,2]
[320044857,1711111863144,-3908.24,0.00030136,2]
[320044858,1711111863154,-500.0,0.00030136,2]
[320044859,1711111863163,-500.0,0.00030136,2]
[320044860,1711111863172,-500.0,0.00030136,2]
[320044861,1711111863182,-626.60944168,0.00030136,2]
[320044862,1711111863191,-500.0,0.00030136,2]
[320044863,1711111863200,-500.0,0.00030136,2]
[320044864,1711111863209,-7010.86,0.00030136,2]
[320044865,1711111863218,-3562.59,0.00030136,2]
[320044866,1711111863226,-5003.73,0.00030136,2]
[320044867,1711111863235,-798.72,0.00030136,2]
[320044868,1711111863249,-1138.64,0.00030136,2]
[320044869,1711111863259,-620.82,0.00030136,2]
[320044870,1711111863268,-500.0,0.00030136,2]
[320044871,1711111863277,-500.0,0.00030136,2]
[320044872,1711111863287,-674.43,0.00030136,2]
[320044873,1711111863297,-500.0,0.00030136,2]
[320044874,1711111863307,-28754.89,0.00030136,2]
[320044875,1711111863317,-3444.81,0.00030136,2]
[320044876,1711111863327,-749.25,0.00030136,2]
[320044877,1711111863336,-500.0,0.00030136,2]
[320044878,1711111863345,-2023.32,0.00030136,2]
[320044879,1711111863354,-368.83574321,0.00030136,2]
[320044880,1711111863363,-500.0,0.00030136,2]
[320044881,1711111863372,-1405.19,0.00030136,2]
[320044882,1711111863380,-763.48,0.00030136,2]
[320044883,1711111863389,-757.09,0.00030136,2]
[320044884,1711111863399,-7621.78,0.00030136,2]
[320044885,1711111863408,-500.0,0.00030136,2]
[320044886,1711111863417,-500.0,0.00030136,2]
[320044887,1711111863427,-500.0,0.00030136,2]
[320044888,1711111863435,-500.0,0.00030136,2]
[320044889,1711111863446,-1000.0,0.00030136,2]
[320044890,1711111863455,-2763.71,0.00030136,2]
[320044891,1711111863464,-500.0,0.00030136,2]
[320044892,1711111863473,-500.0,0.00030136,2]
[320044893,1711111863482,-500.0,0.00030136,2]
[320044894,1711111863496,-500.0,0.00030136,2]
[320044895,1711111863506,-535.08,0.00030136,2]
[320044896,1711111863516,-500.0,0.00030136,2]
[320044897,1711111863528,-763.4,0.00030136,2]
[320044898,1711111863537,-500.0,0.00030136,2]
[320044899,1711111863550,-500.0,0.00030136,2]
[320044900,1711111863559,-500.0,0.00030136,2]
[320044901,1711111863568,-500.0,0.00030136,2]
[320044902,1711111863577,-632.84,0.00030136,2]
[320044903,1711111863586,-500.0,0.00030136,2]